[Event "*** SCC Grand Prix: Titled Tuesday Blitz"]
[Site "Chess.com"]
[Date "2020.07.21"]
[Round "8"]
[White "Maksat-94"]
[Black "BeanScreen"]
[Result "1-0"]
[WhiteElo "2492"]
[BlackElo "2673"]
[TimeControl "180+1"]
[EndTime "11:36:21 PDT"]
[Termination "Maksat-94 won by resignation"]

1. e4 {[%clk 0:03:00.9]} 1... e5 {[%clk 0:02:59.3]} 2. Nf3 {[%clk 0:02:59.9]}
2... Nc6 {[%clk 0:03:00.1]} 3. Bc4 {[%clk 0:02:58.9]} 3... Nf6 {[%clk
0:03:00.4]} 4. d3 {[%clk 0:02:58.7]} 4... Be7 {[%clk 0:03:00.9]} 5. O-O {[%clk
0:02:54.4]} 5... O-O {[%clk 0:03:01.3]} 6. Nc3 {[%clk 0:02:54.5]} 6... d6 {[%clk
0:03:01.3]} 7. h3 {[%clk 0:02:54.9]} 7... Na5 {[%clk 0:03:00.5]} 8. a4 {[%clk
0:02:47.7]} 8... Nxc4 {[%clk 0:03:00.5]} 9. dxc4 {[%clk 0:02:47.6]} 9... h6
{[%clk 0:02:54.5]} 10. Qd3 {[%clk 0:02:47.2]} 10... Nh7 {[%clk 0:02:52.8]} 11.
a5 {[%clk 0:02:19.8]} 11... Ng5 {[%clk 0:02:47.4]} 12. Nxg5 {[%clk 0:02:03.7]}
12... Bxg5 {[%clk 0:02:48.3]} 13. b3 {[%clk 0:02:02.2]} 13... Bxc1 {[%clk
0:02:40]} 14. Raxc1 {[%clk 0:02:01.2]} 14... Kh8 {[%clk 0:02:38.6]} 15. Rcd1
{[%clk 0:02:00.6]} 15... f5 {[%clk 0:02:34.3]} 16. c5 {[%clk 0:02:00.1]} 16...
f4 {[%clk 0:02:31.9]} 17. cxd6 {[%clk 0:01:38.2]} 17... f3 {[%clk 0:02:31.4]}
18. d7 {[%clk 0:00:59.5]} 18... fxg2 {[%clk 0:01:32.7]} 19. Rfe1 {[%clk
0:00:56.2]} 19... Bxd7 {[%clk 0:01:26.9]} 20. Qxd7 {[%clk 0:00:54.6]} 20... Qh4
{[%clk 0:01:27.3]} 21. Re2 {[%clk 0:00:54.4]} 21... Rf3 {[%clk 0:01:23.3]} 22.
Rd3 {[%clk 0:00:45.6]} 22... Raf8 {[%clk 0:01:22.6]} 23. Qg4 {[%clk 0:00:41.2]}
23... Qf6 {[%clk 0:00:14.2]} 24. Rxf3 {[%clk 0:00:38.8]} 24... Qxf3 {[%clk
0:00:15.1]} 25. Qxf3 {[%clk 0:00:39.3]} 25... Rxf3 {[%clk 0:00:16]} 26. Re3
{[%clk 0:00:39.5]} 26... Rf6 {[%clk 0:00:15.1]} 27. Kxg2 {[%clk 0:00:39.3]}
27... Rg6+ {[%clk 0:00:15.7]} 28. Kf1 {[%clk 0:00:38.2]} 28... Rd6 {[%clk
0:00:15.5]} 29. Ke2 {[%clk 0:00:37.8]} 29... Kg8 {[%clk 0:00:15]} 30. Rd3 {[%clk
0:00:36.1]} 30... Rg6 {[%clk 0:00:14.5]} 31. Rd8+ {[%clk 0:00:34.7]} 31... Kh7
{[%clk 0:00:14.8]} 32. Rd7 {[%clk 0:00:34.4]} 32... Rc6 {[%clk 0:00:15.1]} 33.
Kd3 {[%clk 0:00:34.3]} 33... Rf6 {[%clk 0:00:15.3]} 34. Rxc7 {[%clk 0:00:33.5]}
34... Rxf2 {[%clk 0:00:14.9]} 35. Rxb7 {[%clk 0:00:33.1]} 35... Rf3+ {[%clk
0:00:15.1]} 36. Kd2 {[%clk 0:00:33]} 36... Rxh3 {[%clk 0:00:15.3]} 37. Rxa7
{[%clk 0:00:33.4]} 37... h5 {[%clk 0:00:12.5]} 38. a6 {[%clk 0:00:33.2]} 38...
h4 {[%clk 0:00:11.4]} 39. Rf7 {[%clk 0:00:32.1]} 39... Rh2+ {[%clk 0:00:11.5]}
40. Ne2 {[%clk 0:00:31.1]} 40... Rh1 {[%clk 0:00:10.5]} 41. a7 {[%clk
0:00:27.9]} 41... Ra1 {[%clk 0:00:10.6]} 42. Nc3 {[%clk 0:00:25.3]} 42... Ra6
{[%clk 0:00:09.8]} 43. b4 {[%clk 0:00:23.6]} 43... h3 {[%clk 0:00:09.9]} 44. Rf3
{[%clk 0:00:22.5]} 44... h2 {[%clk 0:00:07.1]} 45. Rh3+ {[%clk 0:00:22.1]} 45...
Rh6 {[%clk 0:00:07.2]} 46. Rxh2 {[%clk 0:00:21.7]} 46... Rxh2+ {[%clk
0:00:08.1]} 47. Ne2 {[%clk 0:00:20.8]} 1-0

[Event "*** SCC Grand Prix: Titled Tuesday Blitz"]
[Site "Chess.com"]
[Date "2020.07.21"]
[Round "8"]
[White "Reader777"]
[Black "Zenzo"]
[Result "1/2-1/2"]
[WhiteElo "2659"]
[BlackElo "2558"]
[TimeControl "180+1"]
[EndTime "11:36:30 PDT"]
[Termination "Game drawn by repetition"]

1. d4 {[%clk 0:03:00.9]} 1... Nf6 {[%clk 0:02:59.7]} 2. c4 {[%clk 0:03:00.8]}
2... e6 {[%clk 0:02:59.8]} 3. g3 {[%clk 0:03:00.9]} 3... d5 {[%clk 0:02:58.6]}
4. Bg2 {[%clk 0:03:01]} 4... dxc4 {[%clk 0:02:57.9]} 5. Nf3 {[%clk 0:03:01.3]}
5... Be7 {[%clk 0:02:56.1]} 6. O-O {[%clk 0:03:01.3]} 6... O-O {[%clk 0:02:56]}
7. Qc2 {[%clk 0:03:01.5]} 7... a6 {[%clk 0:02:54.1]} 8. a4 {[%clk 0:03:01]} 8...
Nbd7 {[%clk 0:02:51.9]} 9. Nbd2 {[%clk 0:02:56.7]} 9... Rb8 {[%clk 0:02:44.3]}
10. Nxc4 {[%clk 0:02:52.2]} 10... b6 {[%clk 0:02:43.7]} 11. Nfe5 {[%clk
0:02:48.6]} 11... Bb7 {[%clk 0:02:33.9]} 12. Nc6 {[%clk 0:02:45.8]} 12... Bxc6
{[%clk 0:02:34]} 13. Bxc6 {[%clk 0:02:46.3]} 13... Nd5 {[%clk 0:02:34.5]} 14.
Bd2 {[%clk 0:02:38.3]} 14... b5 {[%clk 0:02:08.9]} 15. axb5 {[%clk 0:02:36.3]}
15... axb5 {[%clk 0:02:09.8]} 16. Na5 {[%clk 0:02:33.1]} 16... Nb4 {[%clk
0:01:41.5]} 17. Bxb4 {[%clk 0:02:24.9]} 17... Bxb4 {[%clk 0:01:42.4]} 18. Bxd7
{[%clk 0:02:23.9]} 18... Bxa5 {[%clk 0:01:37.6]} 19. Bxe6 {[%clk 0:02:21.9]}
19... Bb6 {[%clk 0:01:37.5]} 20. Bb3 {[%clk 0:02:09.2]} 20... Qxd4 {[%clk
0:01:35.9]} 21. Rad1 {[%clk 0:02:07.7]} 21... Qf6 {[%clk 0:01:33.8]} 22. e3
{[%clk 0:02:01]} 22... Rfd8 {[%clk 0:01:31.6]} 23. Kg2 {[%clk 0:01:53.1]} 23...
g6 {[%clk 0:01:30.8]} 24. h4 {[%clk 0:01:51.8]} 24... Kg7 {[%clk 0:01:26.7]} 25.
h5 {[%clk 0:01:50.7]} 25... c5 {[%clk 0:01:07.6]} 26. Bd5 {[%clk 0:01:43.9]}
26... c4 {[%clk 0:01:02.2]} 27. b3 {[%clk 0:01:33]} 27... cxb3 {[%clk
0:00:58.8]} 28. Qxb3 {[%clk 0:01:31.7]} 28... Bc5 {[%clk 0:00:49.8]} 29. h6+
{[%clk 0:01:27.6]} 29... Kxh6 {[%clk 0:00:43.9]} 30. Bxf7 {[%clk 0:01:25.6]}
30... Kg7 {[%clk 0:00:43.8]} 31. Bd5 {[%clk 0:01:24.4]} 31... b4 {[%clk
0:00:43]} 32. Rc1 {[%clk 0:01:22.2]} 32... Be7 {[%clk 0:00:39.9]} 33. Rc6 {[%clk
0:01:18.5]} 33... Rd6 {[%clk 0:00:38.9]} 34. Rfc1 {[%clk 0:01:15.5]} 34... Rbd8
{[%clk 0:00:37.9]} 35. Rxd6 {[%clk 0:01:09.6]} 35... Rxd6 {[%clk 0:00:37.5]} 36.
Rc8 {[%clk 0:01:05.4]} 36... Rd8 {[%clk 0:00:35.9]} 37. Rxd8 {[%clk 0:01:01.6]}
37... Bxd8 {[%clk 0:00:34]} 38. Qxb4 {[%clk 0:01:02.1]} 38... Be7 {[%clk
0:00:31.3]} 39. Qb8 {[%clk 0:01:00]} 39... Qf8 {[%clk 0:00:31.3]} 40. Qe5+
{[%clk 0:00:59.4]} 40... Qf6 {[%clk 0:00:30.9]} 41. Qe4 {[%clk 0:00:58.9]} 41...
Qd6 {[%clk 0:00:29.8]} 42. Bc4 {[%clk 0:00:56.4]} 42... Qf6 {[%clk 0:00:25.1]}
43. g4 {[%clk 0:00:54.7]} 43... h5 {[%clk 0:00:24]} 44. Bd3 {[%clk 0:00:51.7]}
44... hxg4 {[%clk 0:00:22.8]} 45. Qxg4 {[%clk 0:00:51]} 45... Qg5 {[%clk
0:00:22.9]} 46. Kf3 {[%clk 0:00:47.1]} 46... Qxg4+ {[%clk 0:00:22.8]} 47. Kxg4
{[%clk 0:00:47.3]} 47... Kf6 {[%clk 0:00:23.4]} 48. e4 {[%clk 0:00:43.3]} 48...
g5 {[%clk 0:00:22.1]} 49. Bc4 {[%clk 0:00:40.7]} 49... Ke5 {[%clk 0:00:21.5]}
50. Bd5 {[%clk 0:00:40.6]} 50... Bf6 {[%clk 0:00:21.6]} 51. Bc6 {[%clk
0:00:38.4]} 51... Be7 {[%clk 0:00:21.6]} 52. Bd5 {[%clk 0:00:38.5]} 52... Bf6
{[%clk 0:00:22]} 53. Kh5 {[%clk 0:00:38.3]} 53... Kf4 {[%clk 0:00:21.3]} 54. Kg6
{[%clk 0:00:38.5]} 54... Bd4 {[%clk 0:00:21.3]} 55. f3 {[%clk 0:00:36.2]} 55...
Be5 {[%clk 0:00:20.6]} 56. Be6 {[%clk 0:00:34.9]} 56... Bb8 {[%clk 0:00:20.5]}
57. Bg4 {[%clk 0:00:34.1]} 57... Be5 {[%clk 0:00:21]} 58. Kf7 {[%clk 0:00:34.4]}
58... Bb8 {[%clk 0:00:21.8]} 59. Ke6 {[%clk 0:00:35.1]} 59... Be5 {[%clk
0:00:22.6]} 60. Kd5 {[%clk 0:00:35.4]} 60... Bb8 {[%clk 0:00:23.5]} 61. Kd4
{[%clk 0:00:35.9]} 61... Be5+ {[%clk 0:00:24.4]} 62. Kd3 {[%clk 0:00:36.3]}
62... Bb8 {[%clk 0:00:25.2]} 63. Kc4 {[%clk 0:00:37]} 63... Be5 {[%clk 0:00:26]}
64. Kd5 {[%clk 0:00:37.7]} 64... Bb8 {[%clk 0:00:26.8]} 65. Ke6 {[%clk
0:00:38.4]} 65... Be5 {[%clk 0:00:27.6]} 66. Kd7 {[%clk 0:00:39.1]} 66... Bb8
{[%clk 0:00:28.4]} 67. Ke7 {[%clk 0:00:39.6]} 67... Be5 {[%clk 0:00:29.3]} 68.
Kd8 {[%clk 0:00:40.3]} 68... Bb2 {[%clk 0:00:30.2]} 69. Kd7 {[%clk 0:00:40.9]}
69... Be5 {[%clk 0:00:31.1]} 70. Kc6 {[%clk 0:00:41.1]} 70... Bb2 {[%clk
0:00:32]} 71. Kb5 {[%clk 0:00:41.6]} 71... Be5 {[%clk 0:00:32.9]} 72. Kc4 {[%clk
0:00:42.3]} 72... Bg7 {[%clk 0:00:33.7]} 73. Kd5 {[%clk 0:00:42.9]} 73... Be5
{[%clk 0:00:34.6]} 74. Ke6 {[%clk 0:00:43.2]} 74... Bh8 {[%clk 0:00:35.5]} 75.
Kf7 {[%clk 0:00:42.5]} 75... Be5 {[%clk 0:00:36.4]} 76. Kg6 {[%clk 0:00:42.5]}
76... Bc3 {[%clk 0:00:37.3]} 77. Kh5 {[%clk 0:00:42]} 77... Be5 {[%clk
0:00:38.2]} 78. Kh6 {[%clk 0:00:42.8]} 78... Bc3 {[%clk 0:00:39]} 79. Kg6 {[%clk
0:00:43.7]} 79... Be5 {[%clk 0:00:39.8]} 80. Kf7 {[%clk 0:00:44.6]} 80... Bc3
{[%clk 0:00:40.6]} 81. Ke6 {[%clk 0:00:45.3]} 81... Be5 {[%clk 0:00:41.5]}
1/2-1/2

[Event "*** SCC Grand Prix: Titled Tuesday Blitz"]
[Site "Chess.com"]
[Date "2020.07.21"]
[Round "8"]
[White "Morshynska"]
[Black "BJthechessgod"]
[Result "1-0"]
[WhiteElo "2176"]
[BlackElo "2288"]
[TimeControl "180+1"]
[EndTime "11:36:33 PDT"]
[Termination "Morshynska won by resignation"]

1. e4 {[%clk 0:03:00.9]} 1... c5 {[%clk 0:02:56.8]} 2. Nf3 {[%clk 0:03:00.1]}
2... d6 {[%clk 0:02:51.2]} 3. d4 {[%clk 0:02:58.8]} 3... cxd4 {[%clk 0:02:51]}
4. Nxd4 {[%clk 0:02:59.7]} 4... Nf6 {[%clk 0:02:50.9]} 5. Nc3 {[%clk 0:02:58.8]}
5... g6 {[%clk 0:02:48.7]} 6. Bc4 {[%clk 0:02:51]} 6... Bg7 {[%clk 0:02:46.9]}
7. h3 {[%clk 0:02:50.1]} 7... O-O {[%clk 0:02:45]} 8. Bb3 {[%clk 0:02:49.8]}
8... Nc6 {[%clk 0:02:43.6]} 9. Be3 {[%clk 0:02:46.7]} 9... Bd7 {[%clk
0:02:39.1]} 10. O-O {[%clk 0:02:30.8]} 10... Rc8 {[%clk 0:02:33.9]} 11. Qd2
{[%clk 0:02:30.2]} 11... Nxd4 {[%clk 0:02:23]} 12. Bxd4 {[%clk 0:02:29.6]} 12...
Bc6 {[%clk 0:02:17.9]} 13. Rad1 {[%clk 0:02:12.3]} 13... b5 {[%clk 0:01:50]} 14.
e5 {[%clk 0:01:50.1]} 14... dxe5 {[%clk 0:01:47.1]} 15. Bxe5 {[%clk 0:01:51]}
15... Qb6 {[%clk 0:01:36.7]} 16. Bd4 {[%clk 0:01:43.3]} 16... Qb7 {[%clk
0:01:33.6]} 17. f3 {[%clk 0:01:28.1]} 17... a5 {[%clk 0:01:26.1]} 18. a3 {[%clk
0:01:24.3]} 18... Rfd8 {[%clk 0:01:25.3]} 19. Qf2 {[%clk 0:01:21.5]} 19... b4
{[%clk 0:01:16.8]} 20. axb4 {[%clk 0:01:19.4]} 20... axb4 {[%clk 0:01:17.7]} 21.
Ne2 {[%clk 0:01:15.2]} 21... Bd5 {[%clk 0:01:05.6]} 22. Nc1 {[%clk 0:01:01.1]}
22... Bxb3 {[%clk 0:01:03]} 23. Nxb3 {[%clk 0:01:02]} 23... Nd5 {[%clk
0:00:52.6]} 24. Bxg7 {[%clk 0:00:57]} 24... Kxg7 {[%clk 0:00:53.5]} 25. Rd2
{[%clk 0:00:47.5]} 25... Qb6 {[%clk 0:00:31.3]} 26. Rfd1 {[%clk 0:00:33.7]}
26... Qxf2+ {[%clk 0:00:24.6]} 27. Kxf2 {[%clk 0:00:34.6]} 27... e6 {[%clk
0:00:21.9]} 28. Nd4 {[%clk 0:00:26.3]} 28... Ra8 {[%clk 0:00:18.7]} 29. Ne2
{[%clk 0:00:22.2]} 29... Rdc8 {[%clk 0:00:18.1]} 30. h4 {[%clk 0:00:17.3]} 30...
Ra2 {[%clk 0:00:17.8]} 31. Rb1 {[%clk 0:00:16.2]} 31... h5 {[%clk 0:00:17.6]}
32. Nc1 {[%clk 0:00:15.5]} 32... Ra5 {[%clk 0:00:17]} 33. Nd3 {[%clk 0:00:15]}
33... Kf6 {[%clk 0:00:16.5]} 34. g3 {[%clk 0:00:14.4]} 34... Ra2 {[%clk
0:00:15.6]} 35. Ke2 {[%clk 0:00:13.3]} 35... Nb6 {[%clk 0:00:13.8]} 36. Ne1
{[%clk 0:00:11]} 36... Nc4 {[%clk 0:00:13.4]} 37. Rd7 {[%clk 0:00:10.8]} 37...
Rxb2 {[%clk 0:00:07.5]} 38. Rxb2 {[%clk 0:00:10.4]} 38... Nxb2 {[%clk
0:00:08.4]} 39. Rb7 {[%clk 0:00:11.1]} 39... Na4 {[%clk 0:00:05.2]} 40. Rxb4
{[%clk 0:00:10.5]} 40... Nc3+ {[%clk 0:00:06.1]} 41. Kf2 {[%clk 0:00:09]} 41...
Nd5 {[%clk 0:00:05.9]} 42. Rb7 {[%clk 0:00:08.1]} 42... Rc3 {[%clk 0:00:04.7]}
43. Ke2 {[%clk 0:00:07.1]} 43... e5 {[%clk 0:00:03.9]} 44. Kd2 {[%clk 0:00:07]}
44... Ra3 {[%clk 0:00:03]} 45. Nd3 {[%clk 0:00:06.6]} 45... Ra2 {[%clk
0:00:02.8]} 46. Rd7 {[%clk 0:00:05.8]} 46... Nb6 {[%clk 0:00:02.6]} 47. Rd6+
{[%clk 0:00:05.5]} 47... Ke7 {[%clk 0:00:02.6]} 48. Rxb6 {[%clk 0:00:06.4]}
48... f5 {[%clk 0:00:02.4]} 49. Nxe5 {[%clk 0:00:05.9]} 49... Ra3 {[%clk
0:00:01.9]} 50. Nxg6+ {[%clk 0:00:05.3]} 50... Kf7 {[%clk 0:00:02.8]} 51. Nf4
{[%clk 0:00:05.6]} 51... Rxf3 {[%clk 0:00:02.5]} 52. Nxh5 {[%clk 0:00:05]} 52...
Rf2+ {[%clk 0:00:02.6]} 53. Kc1 {[%clk 0:00:04.4]} 1-0

[Event "*** SCC Grand Prix: Titled Tuesday Blitz"]
[Site "Chess.com"]
[Date "2020.07.21"]
[Round "8"]
[White "jamalm2"]
[Black "FMOlexandrProhorov"]
[Result "1-0"]
[WhiteElo "1864"]
[BlackElo "2101"]
[TimeControl "180+1"]
[EndTime "11:36:34 PDT"]
[Termination "jamalm2 won by checkmate"]

1. c4 {[%clk 0:03:00.9]} 1... g6 {[%clk 0:02:50.1]} 2. Nc3 {[%clk 0:02:59.4]}
2... Bg7 {[%clk 0:02:48.2]} 3. d4 {[%clk 0:02:59.1]} 3... c5 {[%clk 0:02:47.7]}
4. Nf3 {[%clk 0:02:55]} 4... cxd4 {[%clk 0:02:47.8]} 5. Nxd4 {[%clk 0:02:54]}
5... Nc6 {[%clk 0:02:48.7]} 6. Nc2 {[%clk 0:02:51.4]} 6... Bxc3+ {[%clk
0:02:45.1]} 7. bxc3 {[%clk 0:02:50]} 7... Qa5 {[%clk 0:02:45.1]} 8. Bd2 {[%clk
0:02:44.4]} 8... Nf6 {[%clk 0:02:44.9]} 9. Nd4 {[%clk 0:02:25.3]} 9... O-O
{[%clk 0:02:38.9]} 10. Qc2 {[%clk 0:02:19.6]} 10... d6 {[%clk 0:02:37.5]} 11. g3
{[%clk 0:02:17.9]} 11... Ne5 {[%clk 0:02:31.8]} 12. Qb3 {[%clk 0:02:06.2]} 12...
Bd7 {[%clk 0:02:13.5]} 13. Bg2 {[%clk 0:02:05.6]} 13... Ba4 {[%clk 0:02:09.1]}
14. Qb4 {[%clk 0:02:02.6]} 14... Qxb4 {[%clk 0:01:59.8]} 15. cxb4 {[%clk
0:02:00.6]} 15... Nxc4 {[%clk 0:02:00.7]} 16. Bxb7 {[%clk 0:01:53.2]} 16... Rab8
{[%clk 0:02:00.6]} 17. Bc6 {[%clk 0:01:52.7]} 17... Bxc6 {[%clk 0:01:51.1]} 18.
Nxc6 {[%clk 0:01:51.8]} 18... Rb6 {[%clk 0:01:37.1]} 19. Nxe7+ {[%clk
0:01:49.7]} 19... Kg7 {[%clk 0:01:37.2]} 20. Bc3 {[%clk 0:01:45.8]} 20... Ne5
{[%clk 0:01:21]} 21. f4 {[%clk 0:01:44.9]} 21... Ned7 {[%clk 0:01:18.2]} 22. Nd5
{[%clk 0:01:42.1]} 22... Rb5 {[%clk 0:01:18.5]} 23. Nxf6 {[%clk 0:01:39.2]}
23... Nxf6 {[%clk 0:01:16.9]} 24. Rd1 {[%clk 0:01:35.2]} 24... Re8 {[%clk
0:01:16.8]} 25. Rxd6 {[%clk 0:01:30.2]} 25... Re6 {[%clk 0:01:17.3]} 26. Rxe6
{[%clk 0:01:27.3]} 26... fxe6 {[%clk 0:01:18.2]} 27. O-O {[%clk 0:01:25]} 27...
Kf7 {[%clk 0:01:18.6]} 28. Rd1 {[%clk 0:01:22.8]} 28... Nd5 {[%clk 0:01:17.6]}
29. Be1 {[%clk 0:01:21.9]} 29... Kf6 {[%clk 0:01:14.8]} 30. e4 {[%clk
0:01:19.5]} 30... Ne3 {[%clk 0:01:14]} 31. Bc3+ {[%clk 0:01:16.5]} 31... Ke7
{[%clk 0:01:12.8]} 32. Rd4 {[%clk 0:01:02.1]} 32... Nc2 {[%clk 0:01:11.8]} 33.
Rc4 {[%clk 0:01:01]} 33... Rb7 {[%clk 0:01:06.5]} 34. a4 {[%clk 0:00:58.8]}
34... Ne3 {[%clk 0:01:04.8]} 35. Rc5 {[%clk 0:00:55.6]} 35... Nd1 {[%clk
0:01:00.4]} 36. Bd2 {[%clk 0:00:53.2]} 36... Nb2 {[%clk 0:00:59.9]} 37. a5
{[%clk 0:00:51.1]} 37... Nd3 {[%clk 0:00:58.6]} 38. Rc4 {[%clk 0:00:49]} 38...
Nb2 {[%clk 0:00:51.1]} 39. Rc2 {[%clk 0:00:47.5]} 39... Nd3 {[%clk 0:00:50.7]}
40. Bc3 {[%clk 0:00:41.9]} 40... a6 {[%clk 0:00:41]} 41. Rd2 {[%clk 0:00:41.2]}
41... Nc1 {[%clk 0:00:38.7]} 42. Be5 {[%clk 0:00:36.8]} 42... Rxb4 {[%clk
0:00:32.5]} 43. Bd6+ {[%clk 0:00:35.9]} 43... Kf7 {[%clk 0:00:31.2]} 44. Bxb4
{[%clk 0:00:35.6]} 44... Nb3 {[%clk 0:00:30.8]} 45. Rd7+ {[%clk 0:00:34.6]}
45... Kf6 {[%clk 0:00:30.3]} 46. Bc3+ {[%clk 0:00:29.4]} 46... e5 {[%clk
0:00:30.6]} 47. Bxe5+ {[%clk 0:00:27.8]} 47... Ke6 {[%clk 0:00:30.9]} 48. Rd6+
{[%clk 0:00:27.8]} 48... Ke7 {[%clk 0:00:30.3]} 49. Rxa6 {[%clk 0:00:27.3]}
49... Nc5 {[%clk 0:00:31.2]} 50. Ra7+ {[%clk 0:00:26.7]} 50... Ke6 {[%clk
0:00:30.9]} 51. Rc7 {[%clk 0:00:25.6]} 51... Nxe4 {[%clk 0:00:31.1]} 52. a6
{[%clk 0:00:22.4]} 52... Nd2 {[%clk 0:00:30.1]} 53. a7 {[%clk 0:00:22]} 53...
Nf3+ {[%clk 0:00:30.1]} 54. Kf2 {[%clk 0:00:21.6]} 54... Nxe5 {[%clk 0:00:29.5]}
55. fxe5 {[%clk 0:00:21.5]} 55... Kf5 {[%clk 0:00:29.9]} 56. a8=Q {[%clk
0:00:21]} 56... Kg4 {[%clk 0:00:29.7]} 57. Qf3+ {[%clk 0:00:19.5]} 57... Kh3
{[%clk 0:00:29.7]} 58. Rxh7# {[%clk 0:00:18.5]} 1-0

[Event "*** SCC Grand Prix: Titled Tuesday Blitz"]
[Site "Chess.com"]
[Date "2020.07.21"]
[Round "8"]
[White "capatl"]
[Black "viktorskliarov"]
[Result "1/2-1/2"]
[WhiteElo "2419"]
[BlackElo "2575"]
[TimeControl "180+1"]
[EndTime "11:36:35 PDT"]
[Termination "Game drawn - insufficient material"]

1. c4 {[%clk 0:03:00.9]} 1... e5 {[%clk 0:02:53.3]} 2. Nc3 {[%clk 0:03:01.2]}
2... Bb4 {[%clk 0:02:52.3]} 3. g3 {[%clk 0:02:59.6]} 3... Bxc3 {[%clk
0:02:51.9]} 4. bxc3 {[%clk 0:03:00.5]} 4... d6 {[%clk 0:02:51.1]} 5. Bg2 {[%clk
0:03:00.6]} 5... Nf6 {[%clk 0:02:46.9]} 6. e4 {[%clk 0:02:44.9]} 6... O-O {[%clk
0:02:45.8]} 7. Ne2 {[%clk 0:02:43.9]} 7... Be6 {[%clk 0:02:43.9]} 8. d3 {[%clk
0:02:43.5]} 8... a6 {[%clk 0:02:44.3]} 9. Rb1 {[%clk 0:02:43.2]} 9... b5 {[%clk
0:02:41.3]} 10. cxb5 {[%clk 0:02:41]} 10... axb5 {[%clk 0:02:40.7]} 11. Rxb5
{[%clk 0:02:41.9]} 11... Rxa2 {[%clk 0:02:38]} 12. O-O {[%clk 0:02:34.8]} 12...
Qd7 {[%clk 0:02:34.8]} 13. Rb2 {[%clk 0:02:33.6]} 13... Ra1 {[%clk 0:02:31.5]}
14. Qc2 {[%clk 0:02:29.2]} 14... Bh3 {[%clk 0:02:30.1]} 15. Rb1 {[%clk
0:02:17.3]} 15... Rxb1 {[%clk 0:02:24.3]} 16. Qxb1 {[%clk 0:02:18.2]} 16... Bxg2
{[%clk 0:02:24]} 17. Kxg2 {[%clk 0:02:19.1]} 17... d5 {[%clk 0:02:24.3]} 18. Bg5
{[%clk 0:02:00.7]} 18... dxe4 {[%clk 0:02:13.3]} 19. dxe4 {[%clk 0:01:58.7]}
19... Qc6 {[%clk 0:02:08.5]} 20. Bxf6 {[%clk 0:01:55.6]} 20... Qxf6 {[%clk
0:02:07.8]} 21. Qb7 {[%clk 0:01:45.6]} 21... Qc6 {[%clk 0:02:04.3]} 22. Rb1
{[%clk 0:01:44.8]} 22... h5 {[%clk 0:01:57]} 23. Qxc6 {[%clk 0:01:35.2]} 23...
Nxc6 {[%clk 0:01:56.7]} 24. Rb5 {[%clk 0:01:36.1]} 24... Ra8 {[%clk 0:01:43.1]}
25. Rc5 {[%clk 0:01:32.4]} 25... Ra6 {[%clk 0:01:42.4]} 26. Nc1 {[%clk
0:01:29.1]} 26... f6 {[%clk 0:01:38.7]} 27. Nb3 {[%clk 0:01:17.1]} 27... Kf7
{[%clk 0:01:36.6]} 28. Nd2 {[%clk 0:01:16.2]} 28... Ke6 {[%clk 0:01:30.3]} 29.
Nc4 {[%clk 0:01:16.2]} 29... Kd7 {[%clk 0:01:30.5]} 30. Ne3 {[%clk 0:01:14.5]}
30... Ra2 {[%clk 0:01:25.6]} 31. Nf5 {[%clk 0:01:07.3]} 31... g5 {[%clk
0:01:19.7]} 32. Ng7 {[%clk 0:00:54.5]} 32... h4 {[%clk 0:01:00.7]} 33. gxh4
{[%clk 0:00:52]} 33... gxh4 {[%clk 0:01:00.7]} 34. Nh5 {[%clk 0:00:49.9]} 34...
Kd6 {[%clk 0:01:00.9]} 35. Rd5+ {[%clk 0:00:47.9]} 35... Ke6 {[%clk 0:01:00.6]}
36. Ng7+ {[%clk 0:00:48.2]} 36... Ke7 {[%clk 0:00:41.7]} 37. Nf5+ {[%clk
0:00:49.1]} 37... Ke6 {[%clk 0:00:42]} 38. Rc5 {[%clk 0:00:42.8]} 38... Ne7
{[%clk 0:00:26.4]} 39. Nxh4 {[%clk 0:00:34]} 39... Kd6 {[%clk 0:00:26.6]} 40.
Rc4 {[%clk 0:00:31.9]} 40... c5 {[%clk 0:00:26.5]} 41. Nf5+ {[%clk 0:00:26.4]}
41... Nxf5 {[%clk 0:00:23.3]} 42. exf5 {[%clk 0:00:27.3]} 42... Kd5 {[%clk
0:00:21.8]} 43. Rg4 {[%clk 0:00:27.3]} 43... Rc2 {[%clk 0:00:20.7]} 44. Rg3
{[%clk 0:00:17.6]} 44... e4 {[%clk 0:00:19.8]} 45. h4 {[%clk 0:00:17.9]} 45...
Ke5 {[%clk 0:00:20.1]} 46. h5 {[%clk 0:00:18.4]} 46... Ra2 {[%clk 0:00:18.8]}
47. h6 {[%clk 0:00:18.7]} 47... Ra8 {[%clk 0:00:19.3]} 48. h7 {[%clk 0:00:18.4]}
48... Rh8 {[%clk 0:00:19.9]} 49. Rg7 {[%clk 0:00:19]} 49... Kxf5 {[%clk
0:00:19.7]} 50. Kg3 {[%clk 0:00:19.6]} 50... c4 {[%clk 0:00:16.9]} 51. Rc7
{[%clk 0:00:18.6]} 51... Kg5 {[%clk 0:00:16.6]} 52. Rc5+ {[%clk 0:00:18.3]}
52... f5 {[%clk 0:00:16.3]} 53. Rc7 {[%clk 0:00:19.2]} 53... f4+ {[%clk
0:00:15.6]} 54. Kh3 {[%clk 0:00:19.8]} 54... e3 {[%clk 0:00:15.5]} 55. Rc5+
{[%clk 0:00:19.6]} 55... Kg6 {[%clk 0:00:14.9]} 56. fxe3 {[%clk 0:00:19.1]}
56... fxe3 {[%clk 0:00:15]} 57. Rxc4 {[%clk 0:00:18.4]} 57... Rxh7+ {[%clk
0:00:14.6]} 58. Kg2 {[%clk 0:00:18.8]} 58... Re7 {[%clk 0:00:11.9]} 59. Kf1
{[%clk 0:00:18.6]} 59... Kf5 {[%clk 0:00:11.8]} 60. Ke2 {[%clk 0:00:19]} 60...
Re4 {[%clk 0:00:11.6]} 61. Rxe4 {[%clk 0:00:16.8]} 61... Kxe4 {[%clk 0:00:11.7]}
62. c4 {[%clk 0:00:17.7]} 62... Kd4 {[%clk 0:00:12]} 63. c5 {[%clk 0:00:18.6]}
63... Kxc5 {[%clk 0:00:12.9]} 64. Kxe3 {[%clk 0:00:19.4]} 1/2-1/2